Workbook

Sheet Sheet1
D2: Dutching sheet for equal/unequal profits from 2 horses up to 9 horses - WIN ONLY BETS
D4: 4 | E4: Runners | F4: Odds | G4: Req profit | H4: Stake | I4: Returns | O4: 2 RUNNERS | Z4: PROFIT | AB4: =SUM(AB5:AB6) -> 0
E5: Horse 1 | F5: 4 | G5: 0 | H5: =IF($D$4=2,AB5,IF($D$4=3,AB8,IF($D$4=4,AB12,IF($D$4=5,AB17,IF($D$4=6,AB23,IF($D$4=7,AB30,IF($D$4=8,AB38,IF($D$4=9,AB47)))))))) -> 4.897959184 | I5: =IF(H5="","",H5*F5) -> 19.59183673 | O5: =F5 -> 4 | P5: -1 | Z5: =G5 -> 0 | AB5: =MMULT(MINVERSE(O5:P6),Z5:Z6) -> 0 | AC5: =AB5*O5+AB5 -> 0
E6: Horse 2 | F6: 5 | G6: 0 | H6: =IF($D$4=2,AB6,IF($D$4=3,AB9,IF($D$4=4,AB13,IF($D$4=5,AB18,IF($D$4=6,AB24,IF($D$4=7,AB31,IF($D$4=8,AB39,IF($D$4=9,AB48)))))))) -> 4.081632653 | I6: =IF(H6="","",H6*F6) -> 20.40816327 | O6: -1 | P6: =F6 -> 5 | Z6: =G6 -> 0 | AB6: 0 | AC6: =AB6*P6+AB6 -> 0
E7: Horse 3 | F7: 7 | G7: 0 | H7: =IF($D$4=2,"",IF($D$4=3,AB10,IF($D$4=4,AB14,IF($D$4=5,AB19,IF($D$4=6,AB25,IF($D$4=7,AB32,IF($D$4=8,AB40,IF($D$4=9,AB49)))))))) -> 3.06122449 | I7: =IF(H7="","",H7*F7) -> 21.42857143 | O7: 3 RUNNERS | Z7: PROFIT | AB7: =SUM(AB8:AB10) -> 0
E8: Horse 4 | F8: 9 | G8: 100 | H8: =IF($D$4=2,"",IF($D$4=3,AB11,IF($D$4=4,AB15,IF($D$4=5,AB20,IF($D$4=6,AB26,IF($D$4=7,AB33,IF($D$4=8,AB41,IF($D$4=9,AB50)))))))) -> 12.44897959 | I8: =IF(H8="","",H8*F8) -> 112.0408163 | O8: =F5 -> 4 | P8: -1 | Q8: -1 | Z8: =G5 -> 0 | AB8: =MMULT(MINVERSE(O8:Q10),Z8:Z10) -> 0 | AC8: =AB8*O8+AB8 -> 0
H9: =IF($D$4=2,"",IF($D$4=3,"",IF($D$4=4,"",IF($D$4=5,AB21,IF($D$4=6,AB27,IF($D$4=7,AB34,IF($D$4=8,AB42,IF($D$4=9,AB51)))))))) ->  | I9: =IF(H9="","",H9*F9+H9) ->  | O9: -1 | P9: =F6 -> 5 | Q9: -1 | Z9: =G6 -> 0 | AB9: 0 | AC9: =AB9*P9+AB9 -> 0
H10: =IF($D$4=2,"",IF($D$4=3,"",IF($D$4=4,"",IF($D$4=5,"",IF($D$4=6,AB28,IF($D$4=7,AB35,IF($D$4=8,AB43,IF($D$4=9,AB52)))))))) ->  | O10: -1 | P10: -1 | Q10: =F7 -> 7 | Z10: =G7 -> 0 | AB10: 0 | AC10: =AB10*Q10+AB10 -> 0
H11: =IF($D$4=2,"",IF($D$4=3,"",IF($D$4=4,"",IF($D$4=5,"",IF($D$4=6,"",IF($D$4=7,AB36,IF($D$4=8,AB44,IF($D$4=9,AB53)))))))) ->  | O11: 4 RUNNERS | Z11: PROFIT | AB11: =SUM(AB12:AB15) -> 24.48979592
H12: =IF($D$4=2,"",IF($D$4=3,"",IF($D$4=4,"",IF($D$4=5,"",IF($D$4=6,"",IF($D$4=7,"",IF($D$4=8,AB45,IF($D$4=9,AB54)))))))) ->  | O12: =F5 -> 4 | P12: -1 | Q12: -1 | R12: -1 | Z12: =G5 -> 0 | AB12: =MMULT(MINVERSE(O12:R15),Z12:Z15) -> 4.897959184 | AC12: =AB12*O12+AB12 -> 24.48979592
H13: =IF($D$4=2,"",IF($D$4=3,"",IF($D$4=4,"",IF($D$4=5,"",IF($D$4=6,"",IF($D$4=7,"",IF($D$4=8,"",IF($D$4=9,AB55)))))))) ->  | O13: -1 | P13: =F6 -> 5 | Q13: -1 | R13: -1 | Z13: =G6 -> 0 | AB13: 4.081632653 | AC13: =AB13*P13+AB13 -> 24.48979592
H14: =IF(D4=2,H5+H6,IF(D4=3,H5+H6+H7,IF(D4=4,H5+H6+H7+H8,IF(D4=5,H5+H6+H7+H8+H9,IF(D4=6,H5+H6+H7+H8+H9+H10,IF(D4=7,H5+H6+H7+H8+H9+H10+H11,IF(D4=8,H5+H6+H7+H8+H9+H10+H11+H12,IF(D4=9,H5+H6+H7+H8+H9+H10+H11+H12+H13)))))))) -> 24.48979592 | O14: -1 | P14: -1 | Q14: =F7 -> 7 | R14: -1 | Z14: =G7 -> 0 | AB14: 3.06122449 | AC14: =AB14*Q14+AB14 -> 24.48979592
O15: -1 | P15: -1 | Q15: -1 | R15: =F8 -> 9 | Z15: =G8 -> 100 | AB15: 12.44897959 | AC15: =AB15*R15+AB15 -> 124.4897959
D16: Usage | E16: In the table above, in the red cell type in the number of horses that you wish to dutch | O16: 5 RUNNERS | Z16: PROFIT | AB16: =SUM(AB17:AB21) -> -16.90140845
O17: =F5 -> 4 | P17: -1 | Q17: -1 | R17: -1 | S17: -1 | Z17: =G5 -> 0 | AB17: =MMULT(MINVERSE(O17:S21),Z17:Z21) -> -3.38028169 | AC17: =AB17*O17+AB17 -> -16.90140845
E18: In the dark grey column named 'Odds' type in the odds of each horse next to 'Horse1', 'Horse 2' etc, | O18: -1 | P18: =F6 -> 5 | Q18: -1 | R18: -1 | S18: -1 | Z18: =G6 -> 0 | AB18: -2.816901408 | AC18: =AB18*P18+AB18 -> -16.90140845
E19: down to the required number of horses . | O19: -1 | P19: -1 | Q19: =F7 -> 7 | R19: -1 | S19: -1 | Z19: =G7 -> 0 | AB19: -2.112676056 | AC19: =AB19*Q19+AB19 -> -16.90140845
O20: -1 | P20: -1 | Q20: -1 | R20: =F8 -> 9 | S20: -1 | Z20: =G8 -> 100 | AB20: 8.309859155 | AC20: =AB20*R20+AB20 -> 83.09859155
E21: In the dark grey column named 'Req profit' type in your required profit for that particular runner, | O21: -1 | P21: -1 | Q21: -1 | R21: -1 | S21: =F9 -> 0 | Z21: =G9 -> 0 | AB21: -16.90140845 | AC21: =AB21*S21+AB21 -> -16.90140845
E22: down to the required number of horses . | O22: 6 RUNNERS | Z22: PROFIT | AB22: =SUM(AB23:AB28) -> -6.282722513
E23: ---------------------------------------------------------------------------------------------------------------------------- | O23: =F5 -> 4 | P23: -1 | Q23: -1 | R23: -1 | S23: -1 | T23: -1 | Z23: =G5 -> 0 | AB23: =MMULT(MINVERSE(O23:T28),Z23:Z28) -> -1.256544503 | AC23: =AB23*O23+AB23 -> -6.282722513
E24: The table should auto calculate (press F9 to calculate if not) | O24: -1 | P24: =F6 -> 5 | Q24: -1 | R24: -1 | S24: -1 | T24: -1 | Z24: 0 | AB24: -1.047120419 | AC24: =AB24*P24+AB24 -> -6.282722513
O25: -1 | P25: -1 | Q25: =F7 -> 7 | R25: -1 | S25: -1 | T25: -1 | Z25: 0 | AB25: -0.7853403141 | AC25: =AB25*Q25+AB25 -> -6.282722513
E26: In the 'Stake' column, the stake required to dutch bet that particular horse will show | O26: -1 | P26: -1 | Q26: -1 | R26: =F8 -> 9 | S26: -1 | T26: -1 | Z26: 100 | AB26: 9.371727749 | AC26: =AB26*R26+AB26 -> 93.71727749
O27: -1 | P27: -1 | Q27: -1 | R27: -1 | S27: =F9 -> 0 | T27: -1 | Z27: 0 | AB27: -6.282722513 | AC27: =AB27*S27+AB27 -> -6.282722513
E28: In the 'Returns' column, the potential returns will show if that particular horse wins at the given odds | O28: -1 | P28: -1 | Q28: -1 | R28: -1 | S28: -1 | T28: =F10 -> 0 | Z28: 0 | AB28: -6.282722513 | AC28: =AB28*T28+AB28 -> -6.282722513
O29: 7 RUNNERS | Z29: PROFIT | AB29: =SUM(AB30:AB36) -> -3.8585209
E30: The green cell at the bottom of the 'Stake' column shows the total to be staked for the dutched bet. | O30: =F5 -> 4 | P30: -1 | Q30: -1 | R30: -1 | S30: -1 | T30: -1 | U30: -1 | Z30: =G5 -> 0 | AB30: =MMULT(MINVERSE(O30:U36),Z30:Z36) -> -0.7717041801 | AC30: =AB30*O30+AB30 -> -3.8585209
O31: -1 | P31: =F6 -> 5 | Q31: -1 | R31: -1 | S31: -1 | T31: -1 | U31: -1 | Z31: 0 | AB31: -0.6430868167 | AC31: =AB31*P31+AB31 -> -3.8585209
E32: You can use this sheet for dutched equal/unequal profits or saver bets if you want to bet on more | O32: -1 | P32: -1 | Q32: =F7 -> 7 | R32: -1 | S32: -1 | T32: -1 | U32: -1 | Z32: 0 | AB32: -0.4823151125 | AC32: =AB32*Q32+AB32 -> -3.8585209
E33: than one horse in a race. | O33: -1 | P33: -1 | Q33: -1 | R33: =F8 -> 9 | S33: -1 | T33: -1 | U33: -1 | Z33: 100 | AB33: 9.61414791 | AC33: =AB33*R33+AB33 -> 96.1414791
E34: ---------------------------------------------------------------------------------------------------------------------------- | O34: -1 | P34: -1 | Q34: -1 | R34: -1 | S34: =F9 -> 0 | T34: -1 | U34: -1 | Z34: 0 | AB34: -3.8585209 | AC34: =AB34*S34+AB34 -> -3.8585209
E35: NB - If the stake and returns columns become red then the potential dutch bet | O35: -1 | P35: -1 | Q35: -1 | R35: -1 | S35: -1 | T35: =F10 -> 0 | U35: -1 | Z35: 0 | AB35: -3.8585209 | AC35: =AB35*T35+AB35 -> -3.8585209
E36: WILL NOT SHOW A PROFIT given the odds being used, | O36: -1 | P36: -1 | Q36: -1 | R36: -1 | S36: -1 | T36: -1 | U36: =F11 -> 0 | Z36: 0 | AB36: -3.8585209 | AC36: =AB36*U36+AB36 -> -3.8585209
O37: 8 RUNNERS | Z37: PROFIT | AB37: =SUM(AB38:AB45) -> -2.784222738
E38: Certain combinations of odds create a '#NUM!' error, essentially the odds being used cancel each | O38: =F5 -> 4 | P38: -1 | Q38: -1 | R38: -1 | S38: -1 | T38: -1 | U38: -1 | V38: -1 | Z38: =G5 -> 0 | AB38: =MMULT(MINVERSE(O38:V45),Z38:Z45) -> -0.5568445476 | AC38: =AB38*O38+AB38 -> -2.784222738
E39: other out and would not be profitable. | O39: -1 | P39: =F6 -> 5 | Q39: -1 | R39: -1 | S39: -1 | T39: -1 | U39: -1 | V39: -1 | Z39: 0 | AB39: -0.464037123 | AC39: =AB39*P39+AB39 -> -2.784222738
E40: ---------------------------------------------------------------------------------------------------------------------------- | O40: -1 | P40: -1 | Q40: =F7 -> 7 | R40: -1 | S40: -1 | T40: -1 | U40: -1 | V40: -1 | Z40: 0 | AB40: -0.3480278422 | AC40: =AB40*Q40+AB40 -> -2.784222738
D41: Do's and don'ts | E41: Do make a backup of this sheet. | O41: -1 | P41: -1 | Q41: -1 | R41: =F8 -> 9 | S41: -1 | T41: -1 | U41: -1 | V41: -1 | Z41: 100 | AB41: 9.721577726 | AC41: =AB41*R41+AB41 -> 97.21577726
E42: Do type in the name of the horses in the 'Runners' column (if required). | O42: -1 | P42: -1 | Q42: -1 | R42: -1 | S42: =F9 -> 0 | T42: -1 | U42: -1 | V42: -1 | Z42: 0 | AB42: -2.784222738 | AC42: =AB42*S42+AB42 -> -2.784222738
O43: -1 | P43: -1 | Q43: -1 | R43: -1 | S43: -1 | T43: =F10 -> 0 | U43: -1 | V43: -1 | Z43: 0 | AB43: -2.784222738 | AC43: =AB43*T43+AB43 -> -2.784222738
E44: Don't alter formulas in the 'Stake' or 'Returns' columns or the formulas in the table on the | O44: -1 | P44: -1 | Q44: -1 | R44: -1 | S44: -1 | T44: -1 | U44: =F11 -> 0 | V44: -1 | Z44: 0 | AB44: -2.784222738 | AC44: =AB44*U44+AB44 -> -2.784222738
E45: right handside (they contain the nuts and bolts to make this sheet work) | O45: -1 | P45: -1 | Q45: -1 | R45: -1 | S45: -1 | T45: -1 | U45: -1 | V45: =F12 -> 0 | Z45: 0 | AB45: -2.784222738 | AC45: =AB45*V45+AB45 -> -2.784222738
O46: 9 RUNNERS | Z46: PROFIT | AB46: =SUM(AB47:AB55) -> -2.177858439
O47: =F5 -> 4 | P47: -1 | Q47: -1 | R47: -1 | S47: -1 | T47: -1 | U47: -1 | V47: -1 | W47: -1 | Z47: =G5 -> 0 | AB47: =MMULT(MINVERSE(O47:W55),Z47:Z55) -> -0.4355716878 | AC47: =AB47*O47+AB47 -> -2.177858439
O48: -1 | P48: =F6 -> 5 | Q48: -1 | R48: -1 | S48: -1 | T48: -1 | U48: -1 | V48: -1 | W48: -1 | Z48: 0 | AB48: -0.3629764065 | AC48: =AB48*P48+AB48 -> -2.177858439
O49: -1 | P49: -1 | Q49: =F7 -> 7 | R49: -1 | S49: -1 | T49: -1 | U49: -1 | V49: -1 | W49: -1 | Z49: 0 | AB49: -0.2722323049 | AC49: =AB49*Q49+AB49 -> -2.177858439
O50: -1 | P50: -1 | Q50: -1 | R50: =F8 -> 9 | S50: -1 | T50: -1 | U50: -1 | V50: -1 | W50: -1 | Z50: 100 | AB50: 9.782214156 | AC50: =AB50*R50+AB50 -> 97.82214156
O51: -1 | P51: -1 | Q51: -1 | R51: -1 | S51: =F9 -> 0 | T51: -1 | U51: -1 | V51: -1 | W51: -1 | Z51: 0 | AB51: -2.177858439 | AC51: =AB51*S51+AB51 -> -2.177858439
O52: -1 | P52: -1 | Q52: -1 | R52: -1 | S52: -1 | T52: =F10 -> 0 | U52: -1 | V52: -1 | W52: -1 | Z52: 0 | AB52: -2.177858439 | AC52: =AB52*T52+AB52 -> -2.177858439
O53: -1 | P53: -1 | Q53: -1 | R53: -1 | S53: -1 | T53: -1 | U53: =F11 -> 0 | V53: -1 | W53: -1 | Z53: 0 | AB53: -2.177858439 | AC53: =AB53*U53+AB53 -> -2.177858439
O54: -1 | P54: -1 | Q54: -1 | R54: -1 | S54: -1 | T54: -1 | U54: -1 | V54: =F12 -> 0 | W54: -1 | Z54: 0 | AB54: -2.177858439 | AC54: =AB54*V54+AB54 -> -2.177858439
O55: -1 | P55: -1 | Q55: -1 | R55: -1 | S55: -1 | T55: -1 | U55: -1 | V55: -1 | W55: =F13 -> 0 | Z55: 0 | AB55: -2.177858439 | AC55: =AB55*W55+AB55 -> -2.177858439
A140864: Copyright by Skylark2007/Skylark2009 - 2010 ©
A140865: Copyright by Skylark2007/Skylark2009 - 2010 ©
A140866: Copyright by Skylark2007/Skylark2009 - 2010 ©
A140867: Copyright by Skylark2007/Skylark2009 - 2010 ©
A140868: Copyright by Skylark2007/Skylark2009 - 2010 ©
A140869: Copyright by Skylark2007/Skylark2009 - 2010 ©
A140870: Copyright by Skylark2007/Skylark2009 - 2010 ©
A140871: Copyright by Skylark2007/Skylark2009 - 2010 ©
